bitfinex-derivatives/quotes_BTCF0:USTF0_20230402
["timestamp","ask_amount","ask_price","bid_price","bid_amount"]
[1680448043289,0.05,28130.0,28126.0,0.08441894]
[1680448043491,0.05,28130.0,28128.0,0.36984968]
[1680448043888,0.05,28130.0,28126.0,0.46719137]
[1680448044084,0.05,28130.0,28126.0,0.08441894]
[1680448044288,0.05,28130.0,28124.0,0.05]
[1680448044289,0.05,28130.0,28123.0,0.05]
[1680448044683,0.05,28130.0,28127.0,0.39721893]
[1680448044990,0.05,28130.0,28123.0,0.05]
[1680448044991,0.05,28127.0,28123.0,0.05]
[1680448045193,0.3007,28125.0,28121.0,0.40327911]
[1680448045387,0.23073666,28125.0,28121.0,0.40327911]
[1680448045583,0.3007,28128.0,28121.0,0.40327911]
[1680448045784,0.3007,28128.0,28124.0,0.05]
[1680448046186,0.3007,28128.0,28125.0,0.37204732]
[1680448046386,0.3007,28128.0,28126.0,0.05]
[1680448046585,0.3007,28132.0,28126.0,0.05]
[1680448046895,0.3007,28133.0,28128.0,0.05]
[1680448047089,0.3507,28138.0,28130.0,0.9546]
[1680448047090,0.3007,28138.0,28130.0,0.9546]
[1680448047282,0.3007,28138.0,28130.0,0.3532]
[1680448047488,0.3007,28138.0,28131.0,0.46076434]
[1680448048093,0.3007,28138.0,28132.0,0.05]
[1680448048491,0.3007,28138.0,28133.0,0.37951262]
[1680448048689,0.3507,28138.0,28134.0,0.05]
[1680448048890,0.3007,28135.0,28126.0,0.3569]
[1680448049092,0.3007,28131.0,28126.0,0.3069]
[1680448049291,0.3007,28128.0,28122.0,0.05]
[1680448049492,0.3007,28128.0,28123.0,0.23507395]
[1680448049691,0.05,28127.0,28123.0,0.28507395]
[1680448049885,0.05,28127.0,28124.0,0.61306546]
[1680448050086,0.05,28127.0,28125.0,0.23507395]
[1680448050290,0.05,28127.0,28125.0,0.05738462]
[1680448050893,0.6014,28128.0,28122.0,0.05]
[1680448051192,0.3007,28125.0,28122.0,0.05]
[1680448051701,0.3007,28125.0,28124.0,0.05]
[1680448052196,0.3007,28125.0,28122.0,0.17700045]
[1680448052499,0.3007,28125.0,28122.0,0.05]
[1680448052796,0.3007,28125.0,28123.0,0.41175382]
[1680448052996,0.3007,28125.0,28124.0,0.05]
[1680448053384,0.3007,28125.0,28123.0,0.28406449]
[1680448053590,0.3007,28125.0,28124.0,0.05]
[1680448053790,0.23073474,28125.0,28124.0,0.05]
[1680448053989,0.3007,28128.0,28124.0,0.12700045]
[1680448054192,0.3007,28128.0,28125.0,0.05]
[1680448054497,0.3007,28128.0,28124.0,0.05]
[1680448054797,0.3007,28128.0,28124.0,0.17700045]
[1680448055399,0.3007,28128.0,28124.0,0.05]
[1680448055599,0.3007,28131.0,28126.0,0.3007]
[1680448055995,0.3007,28131.0,28127.0,0.43096191]
[1680448056497,0.3007,28131.0,28127.0,0.25327258]
[1680448056794,0.3007,28131.0,28128.0,0.05]
[1680448057100,0.3007,28130.0,28128.0,0.05]
[1680448057301,0.3007,28130.0,28125.0,0.05]
[1680448057493,0.3007,28127.0,28124.0,0.17700045]
[1680448057893,0.3007,28127.0,28126.0,0.05]
[1680448058998,0.3007,28127.0,28126.0,0.43531958]
[1680448059403,0.32044304,28127.0,28126.0,0.25763025]
[1680448062201,0.32044304,28127.0,28124.0,0.12700045]
[1680448062403,0.32044304,28127.0,28125.0,0.12700045]
[1680448062602,0.05,28126.0,28123.0,0.11442184]
[1680448063102,0.32044304,28127.0,28123.0,0.11442184]
[1680448063299,0.05,28126.0,28124.0,0.400609]
[1680448063502,0.05,28126.0,28121.0,0.05257911]
[1680448063702,0.3007,28124.0,28119.0,0.25638913]
[1680448063898,0.05,28123.0,28119.0,0.25638913]
[1680448064101,0.3007,28124.0,28123.0,0.06997092]
[1680448064298,0.06997,28123.0,28119.0,0.15938796]
[1680448064605,0.3007,28120.0,28117.0,0.05688366]
[1680448064806,0.3007,28118.0,28117.0,0.05688366]
[1680448065002,0.3007,28118.0,28114.0,0.05399656]
[1680448065207,0.3007,28115.0,28109.0,0.7996]
[1680448065407,0.3007,28115.0,28107.0,0.20638913]
[1680448065609,0.3007,28115.0,28107.0,0.0286998]
[1680448065807,0.3007,28115.0,28110.0,0.05]
[1680448066101,0.05,28114.0,28111.0,0.38067936]
[1680448066809,0.3007,28115.0,28112.0,0.05]
[1680448066999,0.05,28114.0,28109.0,0.05]
[1680448067203,0.6014,28110.0,28104.0,0.05365837]
[1680448067405,0.3007,28106.0,28104.0,0.10365837]
[1680448068207,0.3007,28106.0,28105.0,0.05]
[1680448068505,0.3007,28106.0,28105.0,0.25651614]
[1680448069104,0.3007,28106.0,28105.0,0.30651614]
[1680448069507,0.3007,28106.0,28105.0,0.25651614]
[1680448071103,0.3007,28110.0,28105.0,0.30651614]
[1680448071309,0.32902744,28124.0,28110.0,0.3532]
[1680448071506,0.2487,28125.0,28119.0,0.3007]
[1680448071809,0.3007,28127.0,28119.0,0.18644215]
[1680448072108,0.06462872,28124.0,28120.0,0.23272796]
[1680448072311,0.05,28124.0,28120.0,0.23272796]
[1680448072500,0.05,28124.0,28121.0,0.06343148]
[1680448072908,0.05,28124.0,28122.0,0.47168439]
[1680448073108,0.05,28126.0,28123.0,0.36413148]
[1680448073309,0.05,28129.0,28125.0,0.3007]
[1680448073709,0.05,28129.0,28126.0,0.37000664]
[1680448073916,0.05,28130.0,28126.0,0.37000664]
[1680448074212,0.05,28133.0,28128.0,0.3007]
[1680448074511,0.3007,28134.0,28128.0,0.3007]
[1680448074710,0.3007,28131.0,28128.0,0.12301067]
[1680448075012,0.3007,28131.0,28129.0,0.05]
[1680448075611,0.3007,28131.0,28130.0,0.40381524]
[1680448075810,0.05,28132.0,28130.0,0.40381524]
[1680448076207,0.05,28132.0,28131.0,0.06343794]
[1680448076415,0.00407619,28132.0,28131.0,0.06343794]
[1680448076712,0.3007,28137.0,28131.0,0.43693149]
[1680448076913,0.00312115,28136.0,28132.0,0.06343794]
[1680448077308,0.00312115,28136.0,28133.0,0.37614944]
[1680448077710,0.00312115,28136.0,28133.0,0.19846011]
[1680448077916,0.00312115,28136.0,28134.0,0.3007]
[1680448077917,0.05,28136.0,28134.0,0.3007]
[1680448078121,0.05,28136.0,28134.0,0.36413794]
[1680448078410,0.05,28139.0,28135.0,0.40878678]
[1680448078617,0.3007,28140.0,28135.0,0.40878678]
[1680448078811,0.3007,28140.0,28135.0,0.47222472]
[1680448079010,0.3007,28140.0,28136.0,0.00231155]
[1680448079317,0.3007,28140.0,28137.0,0.40909689]
[1680448079619,0.3007,28140.0,28137.0,0.41191408]
[1680448080305,0.3007,28140.0,28138.0,0.05]
[1680448080710,0.3007,28140.0,28137.0,0.28422475]
[1680448081111,0.05,28139.0,28137.0,0.28422475]
[1680448081615,0.3007,28140.0,28137.0,0.28422475]
[1680448082111,0.3007,28140.0,28138.0,0.05]
[1680448082515,0.3007,28140.0,28139.0,0.38869873]
[1680448083308,0.3007,28140.0,28137.0,0.00281719]
[1680448083512,0.05,28139.0,28136.0,0.05409174]
[1680448083819,0.05,28139.0,28133.0,0.02442107]
[1680448084014,0.3007,28140.0,28135.0,0.05]
[1680448084416,0.3007,28140.0,28136.0,0.39210387]
[1680448084711,0.3007,28140.0,28137.0,0.05]
[1680448085118,0.3007,28140.0,28138.0,0.38800586]
[1680448085317,0.3007,28140.0,28139.0,0.05]
[1680448085914,0.3007,28140.0,28138.0,0.38800586]
[1680448086115,0.3007,28140.0,28139.0,0.05]
[1680448086420,0.05,28147.0,28139.0,0.05]
[1680448086421,0.05,28147.0,28139.0,0.46165963]
[1680448086617,0.05,28147.0,28140.0,0.3007]
[1680448086815,0.05,28147.0,28141.0,0.05]
[1680448087015,0.05,28147.0,28141.0,0.42544427]
[1680448087212,0.3507,28148.0,28141.0,0.42544427]
[1680448087617,0.3007,28148.0,28141.0,0.42544427]
[1680448087916,0.3007,28151.0,28143.0,0.6539]
[1680448088123,0.3007,28154.0,28143.0,0.9546]
[1680448088316,0.9412,28157.0,28146.0,0.6539]
[1680448088615,0.6197,28157.0,28147.0,1.29929845]
[1680448088809,0.6197,28157.0,28149.0,0.3007]
[1680448089009,0.3007,28157.0,28149.0,0.3007]
[1680448089213,0.3007,28157.0,28150.0,0.41009073]
[1680448089621,0.3007,28157.0,28150.0,0.46009073]
[1680448089916,0.3007,28157.0,28150.0,0.2824014]
[1680448090118,0.05,28156.0,28151.0,0.05]
[1680448090511,0.05,28156.0,28152.0,0.39098778]
[1680448090719,0.3007,28157.0,28152.0,0.39098778]
[1680448091018,0.3007,28157.0,28153.0,0.05]
[1680448091420,0.05,28156.0,28153.0,0.05]
[1680448091619,0.05,28156.0,28150.0,0.05239526]
[1680448091820,0.05,28156.0,28150.0,0.05]
[1680448092121,0.05,28156.0,28151.0,0.05]
[1680448092515,0.05,28156.0,28150.0,0.05]
[1680448092818,0.3007,28154.0,28148.0,0.05]
[1680448093018,0.3007,28151.0,28144.0,0.05]
[1680448093224,0.05,28150.0,28144.0,0.05]
[1680448093416,0.05,28150.0,28147.0,0.05]
[1680448093616,0.05,28150.0,28147.0,0.37186207]
[1680448094013,0.05,28150.0,28146.0,0.0534937]
[1680448094220,0.3007,28148.0,28144.0,0.05]
[1680448094418,0.05,28147.0,28145.0,0.02142834]
[1680448094617,0.05,28150.0,28145.0,0.02142834]
[1680448094823,0.05,28153.0,28146.0,0.76305995]
[1680448095124,0.3007,28154.0,28147.0,0.05]
[1680448095523,0.3007,28154.0,28148.0,0.4071408]
[1680448095725,0.3007,28154.0,28149.0,0.05]
[1680448095917,0.3007,28154.0,28150.0,0.05]
[1680448096120,0.3007,28154.0,28150.0,0.37972393]
[1680448096420,0.3007,28151.0,28150.0,0.37972393]
[1680448097028,0.05,28153.0,28150.0,0.37972393]
[1680448097221,0.3007,28154.0,28150.0,0.37972393]
[1680448097827,0.05,28153.0,28150.0,0.37972393]
[1680448099019,0.05,28153.0,28146.0,0.10388668]
[1680448099321,0.05,28153.0,28146.0,0.05388668]
[1680448099523,0.3007,28151.0,28141.0,0.05]
[1680448099719,0.05,28150.0,28141.0,0.05]
[1680448100222,0.05,28150.0,28144.0,0.40464451]
[1680448100428,0.3007,28151.0,28145.0,0.05]
[1680448100819,0.05,28150.0,28146.0,0.39300047]
[1680448101020,0.05,28150.0,28147.0,0.05]
[1680448101428,0.05,28150.0,28148.0,0.37155935]
[1680448101733,0.3007,28151.0,28149.0,0.05]
[1680448101937,0.3507,28150.0,28142.0,0.05]
[1680448102237,0.3007,28146.0,28140.0,0.05]
[1680448102425,0.05,28145.0,28140.0,0.05]
[1680448102630,0.05,28145.0,28141.0,0.38556101]
[1680448103234,0.3007,28146.0,28142.0,0.05]
[1680448103431,0.05,28149.0,28142.0,0.05]
[1680448103633,0.05,28149.0,28144.0,0.3532]
[1680448103936,0.05,28153.0,28145.0,1.26881544]
[1680448104136,0.3507,28154.0,28145.0,1.26881544]
[1680448104438,0.3007,28154.0,28145.0,1.31881544]
[1680448104732,0.3007,28154.0,28146.0,0.05]
[1680448105135,0.3007,28154.0,28147.0,0.91461859]
[1680448105331,0.3007,28154.0,28147.0,1.56851859]
[1680448105534,0.3007,28157.0,28148.0,0.05]
[1680448105841,0.3007,28157.0,28150.0,0.6539]
[1680448106235,0.3007,28157.0,28151.0,0.96145783]
[1680448106635,0.3007,28157.0,28152.0,0.05]
[1680448107032,0.3007,28157.0,28153.0,0.39190978]
[1680448107233,0.3007,28157.0,28154.0,0.05]
[1680448107635,0.3007,28157.0,28155.0,0.37202234]
[1680448107829,0.3007,28157.0,28155.0,0.42202234]
[1680448108035,0.3007,28157.0,28153.0,0.37532796]
[1680448108236,0.3007,28157.0,28154.0,0.05]
[1680448108729,0.3007,28157.0,28155.0,0.39191309]
[1680448109532,0.3007,28157.0,28156.0,0.01664859]
[1680448109738,0.3007,28157.0,28154.0,0.05]
[1680448109944,0.3007,28157.0,28156.0,0.37953227]
[1680448110145,0.3007,28157.0,28155.0,0.41120087]
[1680448110341,0.3007,28157.0,28150.0,0.3507]
[1680448110342,0.3507,28156.0,28144.0,0.3007]
[1680448110640,0.05,28155.0,28144.0,0.3007]
[1680448110831,0.05,28155.0,28144.0,0.3507]
[1680448111036,0.3507,28156.0,28150.0,0.05]
[1680448111247,0.3007,28156.0,28150.0,0.05]
[1680448111437,0.3007,28156.0,28151.0,0.39266893]
[1680448111741,0.3007,28156.0,28152.0,0.05]
[1680448112144,0.3007,28156.0,28153.0,0.38485539]
[1680448112336,0.3007,28156.0,28154.0,0.05]
[1680448113437,0.3007,28156.0,28153.0,0.38485539]
[1680448113835,0.3007,28158.0,28153.0,0.38485539]
[1680448114042,0.05,28157.0,28154.0,0.05]
[1680448114439,0.3007,28158.0,28155.0,0.37867898]
[1680448114844,0.3007,28158.0,28156.0,0.05]
[1680448115641,0.3007,28158.0,28155.0,0.37867898]
[1680448115842,0.3007,28158.0,28157.0,0.39690098]
[1680448116047,0.3007,28158.0,28155.0,0.3995601]
[1680448116346,0.3007,28158.0,28156.0,0.05]
[1680448116851,0.3007,28158.0,28157.0,0.41195423]
[1680448117037,0.3007,28158.0,28154.0,0.05336441]
[1680448117238,0.05,28157.0,28153.0,0.3007]
[1680448117945,0.05,28157.0,28154.0,0.40997621]
[1680448118141,0.05,28157.0,28148.0,0.05]
[1680448118841,0.05,28157.0,28150.0,0.05]
[1680448119249,0.05,28157.0,28151.0,0.40324937]
[1680448119544,0.05,28157.0,28152.0,0.05]
[1680448119940,0.05,28157.0,28153.0,0.40738257]
[1680448120149,0.05,28157.0,28154.0,0.05]
[1680448120545,0.05,28157.0,28153.0,0.40738257]
[1680448121045,0.3007,28158.0,28153.0,0.40738257]
[1680448121237,0.3007,28158.0,28153.0,0.75036102]
[1680448121442,0.3007,28158.0,28154.0,0.05]
[1680448121944,0.3007,28158.0,28156.0,0.05]
[1680448122139,0.3007,28158.0,28155.0,0.36953236]
[1680448122340,0.3007,28158.0,28157.0,0.37255553]
[1680448122541,0.3007,28158.0,28155.0,0.40582785]
[1680448122842,0.05,28157.0,28155.0,0.40582785]
[1680448123037,0.05,28157.0,28153.0,0.0966935]
[1680448123245,0.3007,28154.0,28153.0,0.05441505]
[1680448123544,0.3007,28154.0,28151.0,0.04227845]
[1680448123742,0.3007,28154.0,28153.0,0.37845636]
[1680448124040,0.3007,28154.0,28151.0,0.42801418]
[1680448124239,0.3007,28154.0,28152.0,0.38069484]
[1680448124439,0.3007,28154.0,28153.0,0.44715718]
[1680448124645,0.3007,28154.0,28153.0,0.01036036]
[1680448124854,0.3007,28155.0,28153.0,0.01036036]
[1680448125053,0.3007,28154.0,28153.0,0.00276838]
[1680448125349,0.3507,28154.0,28153.0,0.00174708]
[1680448125648,0.3507,28154.0,28149.0,0.04227845]
[1680448125851,0.3007,28151.0,28149.0,0.04227845]
[1680448126445,0.05,28150.0,28149.0,0.04227845]
[1680448127054,0.3007,28151.0,28149.0,0.04227845]
[1680448127245,0.05,28150.0,28147.0,0.08418484]
[1680448127642,0.05,28150.0,28148.0,0.05]
[1680448127849,0.3007,28151.0,28147.0,0.08418484]
[1680448128048,0.3007,28151.0,28148.0,0.48912321]
[1680448128254,0.05,28150.0,28148.0,0.48912321]
[1680448128450,0.3507,28150.0,28147.0,0.08418484]
[1680448128650,0.3507,28150.0,28149.0,0.04243469]
[1680448128853,0.6514,28150.0,28148.0,0.04243469]
[1680448129152,0.05,28149.0,28144.0,0.04364085]
[1680448129356,0.6014,28145.0,28139.0,0.10578227]
[1680448129558,0.6014,28140.0,28139.0,0.10578227]
[1680448129950,0.6014,28140.0,28135.0,0.98100006]
[1680448129951,0.6014,28140.0,28138.0,0.10578227]
[1680448130654,0.05,28139.0,28138.0,0.10578227]
[1680448130854,0.05,28139.0,28136.0,0.12696667]
[1680448131054,0.3007,28137.0,28136.0,0.17696667]
[1680448131254,0.3007,28137.0,28136.0,0.50647101]
[1680448131455,0.3007,28137.0,28136.0,0.12696667]
[1680448131644,0.3007,28137.0,28136.0,0.37134203]
[1680448131846,0.3007,28137.0,28136.0,0.49868326]
[1680448132053,0.3007,28137.0,28136.0,0.12734123]
[1680448132255,0.3007,28137.0,28136.0,0.50403673]
[1680448132451,0.30710276,28137.0,28136.0,0.50403673]
[1680448133652,0.30710276,28137.0,28136.0,0.3766955]
[1680448134655,0.30710276,28137.0,23157.0,0.00512401]
[1680448134864,0.30710276,28137.0,28136.0,0.1273188]
[1680448135059,0.60780276,28137.0,28136.0,0.53891463]
[1680448135253,0.60780276,28137.0,28136.0,0.1273188]
[1680448135457,1.70627527,28137.0,28136.0,0.49815573]
[1680448135753,1.70627527,28137.0,28136.0,0.37083693]
[1680448136058,1.70627527,28137.0,28135.0,0.1273188]
[1680448136257,0.05,28136.0,28135.0,0.1273188]
[1680448136460,0.05,28136.0,28135.0,0.17960335]
[1680448136758,0.05,28136.0,28135.0,0.4332424]
[1680448137153,0.05,28136.0,28135.0,0.38095785]
[1680448138157,1.70627527,28137.0,28135.0,0.4869711]
[1680448138859,1.70627527,28137.0,28135.0,0.10601325]
[1680448139060,0.05,28136.0,28134.0,0.10601325]
[1680448139557,0.01204771,28135.0,28134.0,0.10526629]
[1680448139757,0.01204771,28135.0,28130.0,0.1773188]
[1680448140068,1.69987251,28131.0,28130.0,0.1273188]
[1680448140363,1.69987251,28131.0,28130.0,0.37697898]
[1680448140756,1.69987251,28131.0,28129.0,0.17966508]
[1680448140958,1.69987251,28131.0,28129.0,0.05234628]
[1680448141157,1.69987251,28131.0,28128.0,0.1273188]
[1680448141560,0.05,28130.0,28128.0,0.1273188]
[1680448142064,1.69987251,28131.0,28128.0,0.1273188]
[1680448142358,1.69987251,28131.0,28130.0,0.1273188]
[1680448142564,1.69987251,28131.0,28130.0,0.1773188]
[1680448142761,1.69987251,28131.0,28130.0,0.41985232]
[1680448143566,1.69987251,28131.0,28130.0,0.54717112]
[1680448143765,1.69987251,28131.0,28130.0,0.41985232]
[1680448143962,1.69987251,28131.0,28130.0,0.54717112]
[1680448144161,1.69987251,28131.0,28130.0,0.41985232]
[1680448144467,1.69987251,28131.0,28130.0,0.36985232]
[1680448145557,1.69987251,28131.0,28130.0,0.05233461]
[1680448145762,1.69987251,28131.0,28129.0,0.4007839]
[1680448145958,1.69987251,28131.0,28130.0,0.39135897]
[1680448146157,1.69987251,28131.0,28129.0,0.05]
[1680448146559,1.69987251,28131.0,28130.0,0.41149201]
[1680448146960,1.69987251,28131.0,28129.0,0.37583499]
[1680448147162,1.69987251,28131.0,28130.0,0.05]
[1680448147468,1.69987251,28131.0,28130.0,0.43290466]
[1680448147764,1.69987251,28131.0,28130.0,0.05]
[1680448147963,1.69987251,28131.0,28130.0,0.4399563]
[1680448148569,1.69987251,28131.0,28130.0,0.3899563]
[1680448148963,1.69987251,28131.0,28128.0,0.40289476]
[1680448149267,1.69987251,28131.0,28129.0,0.05]
[1680448149459,1.69987251,28131.0,28128.0,0.45569388]
[1680448149664,1.69987251,28131.0,28130.0,0.40440202]
[1680448149864,1.69987251,28131.0,28129.0,0.393591]
[1680448150167,0.05,28130.0,28129.0,0.393591]
[1680448150361,0.05,28130.0,28129.0,0.44609539]
[1680448150959,0.05,28130.0,28129.0,0.50953461]
[1680448151263,0.05,28130.0,28128.0,0.06343922]
[1680448151655,0.05,28130.0,28127.0,0.06343922]
[1680448151857,0.3007,28128.0,28127.0,0.06343922]
[1680448152060,1.39917251,28128.0,28127.0,0.06343922]
[1680448152465,1.39917251,28128.0,28126.0,0.06343922]
[1680448152660,0.3007,28127.0,28126.0,0.06343922]
[1680448152969,0.3507,28127.0,28126.0,0.06343922]
[1680448154266,0.3007,28127.0,28126.0,0.06343922]
[1680448154464,0.315671,28127.0,28122.0,0.05]
[1680448154766,0.3007,28124.0,28123.0,0.38389662]
[1680448156560,0.3007,28124.0,28122.0,0.37218322]
[1680448156766,0.3007,28124.0,28123.0,0.05]
[1680448157161,0.3007,28124.0,28123.0,0.37145007]
[1680448157465,0.3007,28124.0,28122.0,0.43768689]
[1680448157657,0.3007,28123.0,28122.0,0.38768689]
[1680448157861,0.3507,28123.0,28120.0,0.05371961]
[1680448158062,1.39917251,28121.0,28116.0,0.1273188]
[1680448158263,0.3007,28117.0,28116.0,0.1773188]
[1680448158569,0.3007,28117.0,28116.0,0.39045248]
[1680448158866,0.3007,28117.0,28115.0,0.37774891]
[1680448159274,0.3007,28117.0,28116.0,0.05]
[1680448159568,0.3007,28117.0,28116.0,0.45965329]
[1680448159767,0.3007,28117.0,28116.0,0.40965329]
[1680448160561,0.3007,28117.0,28116.0,0.51526505]
[1680448160759,0.3007,28117.0,28116.0,0.10561176]
[1680448160963,0.3007,28117.0,28116.0,0.37532202]
[1680448161157,0.3507,28117.0,28116.0,0.08449512]
[1680448161364,0.3507,28117.0,28115.0,0.08449512]
[1680448161365,0.05,28116.0,28115.0,0.08449512]
[1680448161566,0.3507,28116.0,28115.0,0.08449512]
[1680448161966,0.3007,28116.0,28115.0,0.08449512]
[1680448162374,0.3007,28116.0,28114.0,0.08449512]
[1680448163165,0.3007,28116.0,28115.0,0.39008391]
[1680448163574,0.3007,28116.0,28115.0,0.4442508]
[1680448163770,1.09847251,28114.0,28113.0,0.06336689]
[1680448163973,1.09847251,28114.0,28111.0,0.11782077]
[1680448163974,1.39917251,28114.0,28111.0,0.11782077]
[1680448164273,0.3007,28112.0,28111.0,0.05445388]
[1680448164468,0.3007,28112.0,28110.0,0.06336689]
[1680448164775,1.09847251,28111.0,28110.0,0.06336689]
[1680448165273,1.14847251,28111.0,28110.0,0.06336689]
[1680448165569,1.14847251,28111.0,28108.0,0.06336689]
[1680448165773,0.3007,28109.0,28108.0,0.06336689]
[1680448166166,0.3007,28109.0,28107.0,0.05237927]
[1680448166167,0.3007,28109.0,28107.0,0.11574616]
[1680448166376,1.39917251,28108.0,28106.0,0.06336689]
[1680448166571,1.09847251,28105.0,28103.0,0.06336689]
[1680448166871,0.3007,28104.0,28102.0,0.13449512]
[1680448167074,0.3007,28103.0,28102.0,0.08449512]
[1680448167261,0.3007,28103.0,28102.0,0.08451772]
[1680448167462,1.09847251,28102.0,28101.0,0.06330151]
[1680448167668,1.09847251,28102.0,28100.0,0.06330151]
[1680448167865,1.09847251,28102.0,28101.0,0.43985637]
[1680448168070,1.09847251,28102.0,28100.0,0.47576186]
[1680448168369,1.09847251,28102.0,28101.0,0.45728223]
[1680448168674,1.14847251,28102.0,28100.0,0.43768845]
[1680448168869,1.09847251,28102.0,28101.0,0.43381716]
[1680448169064,1.09847251,28102.0,28101.0,0.06330151]
[1680448169268,1.09847251,28102.0,28101.0,0.44888001]
[1680448169473,1.13256588,28102.0,28101.0,0.3855785]
[1680448169863,0.03409337,28102.0,28101.0,0.49888001]
[1680448170067,0.6014,28103.0,28101.0,0.49888001]
[1680448170276,0.02984561,28102.0,28101.0,0.4355785]
[1680448170471,0.3007,28103.0,28101.0,0.4355785]
[1680448170678,0.3007,28107.0,28102.0,0.46647234]
[1680448170871,1.09847251,28108.0,28104.0,0.06327234]
[1680448171070,1.09847251,28108.0,28105.0,0.06327234]
[1680448171268,1.09847251,28108.0,28105.0,0.96502669]
[1680448171771,1.09847251,28108.0,28105.0,0.90175435]
[1680448171976,1.09847251,28109.0,28106.0,0.05]
[1680448172274,1.09847251,28109.0,28107.0,0.94907329]
[1680448172477,1.09847251,28112.0,28107.0,0.94907329]
[1680448172667,1.09847251,28112.0,28109.0,0.3007]
[1680448173067,1.09847251,28112.0,28110.0,0.40666044]
[1680448173271,0.05,28111.0,28110.0,0.40666044]
[1680448173576,0.3507,28111.0,28110.0,0.40666044]
[1680448173975,1.39917251,28115.0,28110.0,0.05]
[1680448174276,1.39917251,28115.0,28111.0,0.38651873]
[1680448174577,1.39917251,28115.0,28111.0,0.91676008]
[1680448174971,1.0955746,28119.0,28114.0,0.6014]
[1680448175172,1.0955746,28119.0,28117.0,0.3007]
[1680448175478,1.0955746,28119.0,28118.0,0.38208428]
[1680448176069,1.0955746,28119.0,28117.0,0.3007]
[1680448176275,1.0955746,28119.0,28118.0,0.38684246]
[1680448176474,0.05,28121.0,28118.0,0.68754246]
[1680448176674,0.05,28121.0,28118.0,1.21877608]
[1680448176871,1.0955746,28123.0,28118.0,1.21877608]
[1680448177373,1.0955746,28123.0,28118.0,0.49050762]
[1680448177674,0.05,28122.0,28119.0,0.3507]
[1680448177882,0.05441143,28122.0,28119.0,0.3507]
[1680448178081,0.05441143,28122.0,28120.0,0.37696901]
[1680448178577,0.00441143,28122.0,28120.0,0.37696901]
[1680448178782,0.00441143,28122.0,28121.0,0.5357397]
[1680448179085,0.00441143,28122.0,28121.0,0.9390438]
[1680448179276,0.00441143,28122.0,28121.0,0.9890438]
[1680448179475,0.00252874,28122.0,28121.0,0.9890438]
[1680448180071,0.00252874,28122.0,28121.0,0.9390438]
[1680448182279,0.00252874,28122.0,28121.0,0.4033041]
[1680448182683,0.00252874,28122.0,28121.0,0.46657644]
[1680448182985,0.00252874,28122.0,28121.0,0.06327234]
[1680448183371,0.00252874,28122.0,28121.0,0.46438552]
[1680448185776,0.00252874,28122.0,28121.0,0.40111318]
[1680448187781,0.00252874,28122.0,28121.0,0.4856309]
[1680448188189,0.00252874,28122.0,28121.0,0.08451772]
[1680448188384,0.00252874,28122.0,28121.0,0.48650996]
[1680448189583,0.00252874,28122.0,28121.0,0.40199224]
[1680448190085,0.00252874,28122.0,28121.0,0.98482848]
[1680448190288,0.00252874,28122.0,28121.0,1.09044024]
[1680448190485,0.00252874,28122.0,28121.0,0.93482848]
[1680448190683,0.00252874,28122.0,28121.0,0.40199224]
[1680448192593,0.00252874,28122.0,28121.0,0.507604]
[1680448192884,0.00252874,28122.0,28121.0,0.10561176]
[1680448193291,0.00252874,28122.0,28121.0,0.49878712]
[1680448196396,0.00252874,28122.0,28121.0,0.39317536]
[1680448196787,0.00150725,28122.0,28120.0,0.39692868]
[1680448196987,0.00150725,28122.0,28121.0,0.05]
[1680448197490,0.00150725,28122.0,28121.0,0.44951114]
[1680448198091,0.00150725,28122.0,28121.0,0.98316069]
[1680448200396,7.25e-06,28122.0,28121.0,0.98316069]
[1680448200991,7.25e-06,28122.0,28121.0,0.93316069]
[1680448201792,7.25e-06,28122.0,28121.0,0.39951114]
[1680448201992,0.05000725,28122.0,28121.0,0.02131986]
[1680448202195,0.05000725,28122.0,28121.0,0.08486402]
[1680448202400,7.25e-06,28122.0,28121.0,0.08486402]
[1680448202694,0.05000725,28122.0,28121.0,0.08487223]
[1680448204495,0.05000725,28122.0,28121.0,0.01517223]
[1680448204703,0.71198365,28120.0,28118.0,0.13838721]
[1680448204902,0.3507,28119.0,28117.0,0.08472205]
[1680448205095,0.05,28118.0,28117.0,0.08472205]
[1680448205601,0.05,28118.0,28117.0,0.50951811]
[1680448206299,0.05644695,28118.0,28117.0,0.50951811]
[1680448207400,0.35714695,28118.0,28115.0,0.0847443]
[1680448207704,0.71198365,28115.0,28114.0,0.0847443]
[1680448207904,1.01268365,28115.0,28113.0,0.0847443]
[1680448208305,0.05,28114.0,28113.0,0.0847443]
[1680448208705,0.05,28114.0,28113.0,0.48228947]
[1680448209103,0.3507,28114.0,28113.0,0.0847443]
[1680448209406,0.3507,28114.0,28111.0,0.1058947]
[1680448209608,0.71198365,28112.0,28111.0,0.1058947]
[1680448209999,0.72508098,28112.0,28111.0,0.1058947]
[1680448210199,0.72508098,28112.0,28111.0,0.51157414]
[1680448211506,0.72508098,28112.0,28111.0,0.40567944]
[1680448211707,0.72508098,28112.0,28111.0,0.51157414]
[1680448211908,0.72508098,28112.0,28111.0,0.1058947]
[1680448212110,0.72508098,28112.0,28111.0,0.51575177]
[1680448212410,0.72508098,28112.0,28111.0,0.40985707]
[1680448212807,1.02578098,28112.0,28110.0,0.1058947]
[1680448213003,0.05,28111.0,28110.0,0.1058947]
[1680448213517,0.05,28111.0,28110.0,0.37866027]
[1680448213909,0.05,28111.0,28110.0,0.10597624]
[1680448214809,0.05,28111.0,28106.0,0.1273188]
[1680448214810,0.05,28111.0,28109.0,0.10597624]
[1680448215111,0.3007,28110.0,28109.0,0.10597624]
[1680448215520,0.71198365,28108.0,28107.0,0.1273188]
[1680448216116,0.71198365,28108.0,28105.0,0.1273188]
[1680448216316,0.05,28107.0,28105.0,0.1273188]
[1680448216816,0.71198365,28105.0,28104.0,0.29663693]
[1680448217016,0.71198365,28105.0,28104.0,0.16931813]
[1680448217214,0.71198365,28105.0,28104.0,0.55520211]